bitfinex/quotes_BTCUSD_20250410
["timestamp","ask_amount","ask_price","bid_price","bid_amount"]
[1744269422971,2e-07,82083.0,82082.0,1.78230687]
[1744269423174,0.00490921,82083.0,82082.0,1.78230687]
[1744269423375,2e-07,82083.0,82082.0,1.79448887]
[1744269423510,0.00490921,82083.0,82082.0,1.79448887]
[1744269423714,2e-07,82083.0,82082.0,1.79448887]
[1744269424178,2e-07,82083.0,82082.0,1.53864887]
[1744269424179,0.2558372,82083.0,82082.0,1.53864887]
[1744269424509,0.26074621,82083.0,82082.0,1.53864887]
[1744269425874,0.26074621,82083.0,82082.0,1.39692887]
[1744269426040,0.26074621,82083.0,82082.0,0.14308887]
[1744269426243,0.26074621,82083.0,82082.0,0.02253505]
[1744269426437,0.255866,82074.0,82073.0,0.4132942]
[1744269426689,0.255866,82074.0,82073.0,0.53384802]
[1744269426890,0.2607155,82074.0,82073.0,0.53384802]
[1744269429358,0.0048495,82074.0,82073.0,0.53384802]
[1744269429531,0.0048495,82074.0,82073.0,0.54603202]
[1744269429732,0.243663,82081.0,82077.0,0.243673]
[1744269429937,2e-07,82083.0,82082.0,0.012182]
[1744269430294,2e-07,82083.0,82082.0,0.13517224]
[1744269430511,2e-07,82083.0,82082.0,0.14727667]
[1744269430825,2e-07,82083.0,82082.0,0.13273582]
[1744269431028,2e-07,82083.0,82082.0,0.27445582]
[1744269432710,2e-07,82083.0,82082.0,0.29715962]
[1744269433496,2e-07,82083.0,82082.0,0.54081762]
[1744269434028,2e-07,82083.0,82082.0,0.55535847]
[1744269434790,2e-07,82083.0,82082.0,0.28497762]
[1744269435023,0.2436552,82083.0,82082.0,0.28497762]
[1744269435224,0.2436552,82083.0,82082.0,0.14325762]
[1744269435352,0.2558372,82083.0,82082.0,0.28497762]
[1744269437573,0.26074933,82083.0,82082.0,0.28497762]
[1744269438847,0.00491233,82083.0,82082.0,0.14325762]
[1744269439085,0.00491233,82083.0,82082.0,0.28601762]
[1744269439399,0.24856733,82083.0,82082.0,0.28601762]
[1744269439747,0.26074933,82083.0,82082.0,0.28601762]
[1744269440607,0.30574933,82083.0,82082.0,0.0227038]
[1744269441008,0.64574933,82083.0,82082.0,0.0227038]
[1744269441210,0.255866,82074.0,82073.0,0.0227038]
[1744269441414,0.26072314,82074.0,82073.0,0.0227038]
[1744269441900,0.26072314,82074.0,82073.0,0.12055382]
[1744269442129,0.00485714,82074.0,82073.0,0.36423882]
[1744269442381,0.00485714,82074.0,82073.0,0.37642282]
[1744269442585,0.243671,82078.0,82074.0,0.012184]
[1744269442736,0.243671,82078.0,82073.0,0.37642282]
[1744269442737,0.243676,82076.0,82075.0,0.12055382]
[1744269442969,0.243676,82076.0,82075.0,0.14325641]
[1744269443210,0.255859,82076.0,82075.0,0.14325641]
[1744269443410,0.260693,82076.0,82075.0,0.14325641]
[1744269443810,0.24851,82076.0,82075.0,0.14325641]
[1744269444059,0.260693,82076.0,82075.0,0.14325641]
[1744269448694,0.004834,82076.0,82075.0,0.14325641]
[1744269448905,0.004834,82076.0,82075.0,0.39911841]
[1744269449104,0.243673,82078.0,82075.0,0.14325641]
[1744269449308,0.243674,82077.0,82075.0,0.14325641]
[1744269449499,0.00481606,82077.0,82076.0,0.26637759]
[1744269449698,0.00481606,82077.0,82076.0,0.39911441]
[1744269449895,0.243672,82078.0,82076.0,0.14325641]
[1744269450100,0.243672,82078.0,82077.0,0.12055382]
[1744269450346,0.243667,82079.0,82077.0,0.12055382]
[1744269450541,0.255846,82081.0,82077.0,0.12055382]
[1744269450542,0.243663,82081.0,82077.0,0.12055382]
[1744269450699,0.255848,82080.0,82077.0,0.12055382]
[1744269450895,0.243667,82079.0,82077.0,0.12055382]
[1744269451109,0.24367,82078.0,82077.0,0.12055382]
[1744269451570,0.24367,82078.0,82077.0,0.14326554]
[1744269451728,0.25585,82079.0,82077.0,0.14326554]
[1744269452069,0.24367,82078.0,82077.0,0.14326554]
[1744269452432,0.24849336,82078.0,82077.0,0.14326554]
[1744269452635,0.26067636,82078.0,82077.0,0.14326554]
[1744269452812,0.26067636,82078.0,82077.0,0.12055382]
[1744269454807,0.26067636,82078.0,82077.0,0.1432828]
[1744269455239,0.26067636,82078.0,82077.0,0.02272898]
[1744269455371,0.30827636,82078.0,82077.0,0.02272898]
[1744269455581,0.72138636,82078.0,82077.0,0.02272898]
[1744269455789,0.255903,82062.0,82061.0,0.14276]
[1744269455984,0.26068957,82062.0,82061.0,0.26331382]
[1744269461315,0.60068957,82062.0,82061.0,0.14276]
[1744269461763,0.255921,82056.0,82055.0,0.10921093]
[1744269461976,0.255921,82056.0,82055.0,0.10929889]
[1744269462152,0.26284587,82056.0,82055.0,0.10929889]
[1744269462378,0.26284587,82056.0,82055.0,8.796e-05]
[1744269465128,0.60284587,82056.0,82055.0,8.796e-05]
[1744269465685,0.64834587,82056.0,82055.0,8.796e-05]
[1744269465915,0.92145587,82056.0,82055.0,8.796e-05]
[1744269466085,0.914531,82056.0,82055.0,8.796e-05]
[1744269466289,0.841421,82056.0,82055.0,8.796e-05]
[1744269466797,0.84995136,82056.0,82055.0,8.796e-05]
[1744269467984,1.24995136,82056.0,82055.0,8.796e-05]
[1744269468536,1.241421,82056.0,82055.0,8.796e-05]
[1744269470029,1.55551741,82056.0,82055.0,9.6e-07]
[1744269470235,1.43508482,82056.0,82055.0,9.6e-07]
[1744269470450,1.48408482,82056.0,82055.0,9.6e-07]
[1744269471812,1.48608482,82056.0,82055.0,9.6e-07]
[1744269472178,1.48808482,82056.0,82055.0,9.6e-07]
[1744269472547,1.48608482,82056.0,82055.0,9.6e-07]
[1744269472774,1.48408482,82056.0,82055.0,9.6e-07]
[1744269473150,1.48708482,82056.0,82055.0,9.6e-07]
[1744269473400,1.62944482,82056.0,82055.0,9.6e-07]
[1744269473659,1.63344482,82056.0,82055.0,9.6e-07]
[1744269476198,0.64384,82050.0,82049.0,5.6e-07]
[1744269476422,0.83750382,82050.0,82049.0,5.6e-07]
[1744269476845,0.718466,82045.0,82044.0,1.6e-07]
[1744269477001,1.23901982,82045.0,82044.0,1.6e-07]
[1744269478954,1.43901982,82045.0,82044.0,1.6e-07]
[1744269479161,1.44401982,82045.0,82044.0,1.6e-07]
[1744269479367,1.44901982,82045.0,82044.0,1.6e-07]
[1744269479548,1.44901982,82045.0,82042.0,0.0001686]
[1744269479754,1.44901982,82045.0,82038.0,2.6e-07]
[1744269479755,0.669085,82039.0,82038.0,2.6e-07]
[1744269479956,0.78963882,82039.0,82038.0,8.306e-05]
[1744269480173,1.18963882,82039.0,82038.0,8.306e-05]
[1744269480578,1.23553882,82039.0,82038.0,8.306e-05]
[1744269480960,1.43753882,82039.0,82038.0,8.306e-05]
[1744269482297,1.19575282,82039.0,82038.0,8.306e-05]
[1744269482539,1.44854276,82039.0,82038.0,8.306e-05]
[1744269483843,1.65450138,82039.0,82038.0,6e-08]
[1744269484207,1.65250138,82039.0,82038.0,6e-08]
[1744269484401,1.65650138,82039.0,82038.0,6e-08]
[1744269484811,1.64799396,82039.0,82038.0,6e-08]
[1744269485172,1.64599396,82039.0,82038.0,6e-08]
[1744269485466,1.67861532,82039.0,82038.0,6e-08]
[1744269485713,1.67861532,82039.0,82022.0,0.0001686]
[1744269485714,0.085301,82023.0,82022.0,2.6e-07]
[1744269485827,0.764935,82023.0,82022.0,1e-06]
[1744269486028,0.88548882,82023.0,82022.0,1e-06]
[1744269486230,0.07311,82017.0,82011.0,0.00064049]
[1744269486436,0.669169,82012.0,82011.0,0.00064049]
[1744269486642,0.78972282,82012.0,82011.0,0.00064049]
[1744269487470,1.18972282,82012.0,82011.0,0.00064049]
[1744269487906,1.19272282,82012.0,82011.0,0.00064049]
[1744269488407,1.19572282,82012.0,82011.0,0.00064049]
[1744269488983,1.39572282,82012.0,82011.0,0.00064049]
[1744269489387,1.40475736,82012.0,82011.0,0.00064049]
[1744269490334,1.52518995,82012.0,82011.0,0.00064049]
[1744269490557,1.40475736,82012.0,82011.0,4.9e-07]
[1744269490754,1.45085736,82012.0,82011.0,4.9e-07]
[1744269491713,1.44785736,82012.0,82011.0,4.9e-07]
[1744269491904,1.59529736,82012.0,82011.0,4.9e-07]
[1744269492930,1.59229736,82012.0,82011.0,4.9e-07]
[1744269493132,1.59629736,82012.0,82011.0,4.9e-07]
[1744269494104,1.62512873,82012.0,82011.0,4.9e-07]
[1744269494250,1.59629736,82012.0,82011.0,4.9e-07]
[1744269496950,1.55019736,82012.0,82011.0,4.9e-07]
[1744269510758,0.596128,81990.0,81989.0,0.0001686]
[1744269511450,0.996128,81990.0,81989.0,0.0001686]
[1744269511976,0.996128,81990.0,81989.0,0.00059467]
[1744269512955,1.196128,81990.0,81989.0,0.00059467]
[1744269514564,1.20823543,81990.0,81989.0,0.00059467]
[1744269514762,1.20823543,81990.0,81989.0,0.04689467]
[1744269514965,1.00823543,81990.0,81989.0,0.04689467]
[1744269515941,0.26823543,81990.0,81989.0,0.04689467]
[1744269516095,0.26823543,81990.0,81989.0,0.09289467]
[1744269520017,0.66823543,81990.0,81989.0,0.09289467]
[1744269527427,0.26823543,81990.0,81989.0,0.09289467]
[1744269528671,0.01210743,81990.0,81989.0,0.09289467]
[1744269528840,0.01210743,81990.0,81989.0,0.21344849]
[1744269529085,0.256128,81990.0,81989.0,0.21344849]
[1744269530154,0.256128,81990.0,81989.0,0.23626471]
[1744269530945,0.26846777,81990.0,81989.0,0.23626471]
[1744269535834,0.243927,81992.0,81989.0,0.23626471]
[1744269536041,0.256125,81991.0,81990.0,0.12055382]
[1744269536649,0.256125,81991.0,81990.0,0.14337004]
[1744269538133,0.26827882,81991.0,81990.0,0.14337004]
[1744269538349,0.26827882,81991.0,81990.0,0.02281622]
[1744269540047,0.01215382,81991.0,81990.0,0.14337004]
[1744269540268,0.243911,81997.0,81993.0,0.24392]
[1744269540468,0.243915,81996.0,81994.0,0.12055382]
[1744269540681,0.256112,81995.0,81994.0,0.12055382]
[1744269541389,0.01191287,81999.0,81998.0,0.012195]
[1744269541535,0.01191287,81999.0,81998.0,0.41396182]
[1744269541734,0.243901,82001.0,81998.0,0.17005382]
[1744269541941,0.256098,82000.0,81999.0,0.12055382]
[1744269542147,0.256098,82000.0,81999.0,0.1433592]
[1744269542685,0.256098,82000.0,81999.0,0.02280538]
[1744269543057,0.26813743,82000.0,81999.0,0.02280538]
[1744269543871,0.26813743,82000.0,81999.0,0.07100538]
[1744269544120,0.01203943,82000.0,81999.0,0.1915592]
[1744269544318,0.212194,82005.0,81999.0,0.2397592]
[1744269544521,0.243896,82002.0,82000.0,0.12055382]
[1744269544667,0.243899,82001.0,82000.0,0.1433592]
[1744269544867,0.25588983,82001.0,82000.0,0.1433592]
[1744269545491,0.26808383,82001.0,82000.0,0.1433592]
[1744269545947,0.26808383,82001.0,82000.0,0.02280538]
[1744269547092,0.36808383,82001.0,82000.0,0.02280538]
[1744269548214,0.356093,82001.0,82000.0,0.02280538]
[1744269550513,0.356093,82001.0,82000.0,0.1433592]
[1744269551942,0.36822012,82001.0,82000.0,0.1433592]
[1744269555173,0.35602612,82001.0,82000.0,0.1433592]
[1744269555384,0.36822012,82001.0,82000.0,0.1433592]
[1744269556209,0.35602612,82001.0,82000.0,0.1433592]
[1744269556418,0.36822012,82001.0,82000.0,0.1433592]
[1744269558888,0.36822012,82001.0,82000.0,0.02280538]
[1744269561494,0.70822012,82001.0,82000.0,0.02280538]
[1744269566017,1.10822012,82001.0,82000.0,0.02280538]
[1744269566274,0.76822012,82001.0,82000.0,0.1433592]
[1744269566509,0.11212712,82001.0,82000.0,0.1433592]
[1744269566740,0.11212712,82001.0,82000.0,0.1908592]
[1744269567233,0.36822012,82001.0,82000.0,0.1908592]
[1744269568145,0.35602612,82001.0,82000.0,0.1908592]
[1744269568388,0.35602612,82001.0,82000.0,0.1433592]
[1744269568596,0.26822012,82001.0,82000.0,0.1433592]
[1744269569168,0.26822012,82001.0,82000.0,0.15476539]
[1744269570440,0.26822012,82001.0,82000.0,0.03421157]
[1744269570639,0.60822012,82001.0,82000.0,0.03421157]
[1744269571429,0.60822012,82001.0,82000.0,0.02280538]
[1744269571657,0.68133012,82001.0,82000.0,0.02280538]
[1744269574584,1.08133012,82001.0,82000.0,0.02280538]
[1744269576359,0.256128,81990.0,81989.0,0.00059467]
[1744269578729,0.012196,81993.0,81989.0,0.00059467]
[1744269578960,0.256126,81991.0,81989.0,0.00059467]
[1744269579278,0.01057992,81990.0,81989.0,0.00059467]
[1744269580163,0.25451192,81990.0,81989.0,0.00059467]
[1744269583411,0.012195,81995.0,81990.0,0.012196]
[1744269583661,0.25611,81996.0,81991.0,0.13274982]
[1744269583899,0.25602912,82001.0,81993.0,0.256116]
[1744269584125,0.243908,81998.0,81995.0,0.243914]
[1744269584590,0.243907,81999.0,81996.0,0.243912]
[1744269584828,0.243909,81998.0,81995.0,0.046]
[1744269585069,0.243914,81996.0,81995.0,0.046]
[1744269585331,0.256104,81998.0,81995.0,0.046]
[1744269585332,0.012195,81998.0,81995.0,0.046]
[1744269585564,0.243914,81998.0,81996.0,0.243914]
[1744269586057,0.243914,81996.0,81995.0,0.046]
[1744269586312,0.243917,81995.0,81993.0,0.12055382]
[1744269586521,0.243917,81995.0,81994.0,0.12055382]
[1744269587118,0.243916,81996.0,81994.0,0.12055382]
[1744269587410,0.243912,81997.0,81994.0,0.36447082]
[1744269587605,0.012195,81995.0,81994.0,0.12055382]
[1744269588021,0.243917,81995.0,81994.0,0.12055382]
[1744269589389,0.256112,81995.0,81994.0,0.12055382]
[1744269593028,0.256128,81990.0,81989.0,0.00059467]
[1744269600881,0.596128,81990.0,81989.0,0.00059467]
[1744269601574,0.644028,81990.0,81989.0,0.00059467]
[1744269602097,0.66687274,81990.0,81989.0,0.00059467]
[1744269602790,0.67618217,81990.0,81989.0,0.00059467]
[1744269603072,0.87618217,81990.0,81989.0,0.00059467]
[1744269604014,1.27618217,81990.0,81989.0,0.00059467]
[1744269604281,1.25333743,81990.0,81989.0,0.00059467]
[1744269604658,1.25333743,81990.0,81989.0,0.00049141]
[1744269605300,1.27615733,81990.0,81989.0,0.00049141]
[1744269607321,0.87615733,81990.0,81989.0,0.00049141]
[1744269607491,0.85333743,81990.0,81989.0,0.00049141]
[1744269607695,1.25333743,81990.0,81989.0,0.00049141]
[1744269609368,1.27614241,81990.0,81989.0,0.00049141]
[1744269611070,1.34925241,81990.0,81989.0,0.00049141]
[1744269616072,1.41964937,81990.0,81989.0,0.00049141]
[1744269616241,1.39625241,81990.0,81989.0,0.00049141]
[1744269616444,1.39825241,81990.0,81989.0,0.00049141]
[1744269616647,1.40025241,81990.0,81989.0,0.00049141]
[1744269617095,1.39625241,81990.0,81989.0,0.00049141]
[1744269617250,1.51680623,81990.0,81989.0,0.00049141]
[1744269617680,1.51980623,81990.0,81989.0,0.00049141]
[1744269618128,1.51680623,81990.0,81989.0,0.00049141]
[1744269618304,1.51980623,81990.0,81989.0,0.00049141]
[1744269618913,1.51680623,81990.0,81989.0,0.00049141]
[1744269619120,1.52180623,81990.0,81989.0,0.00049141]
[1744269619520,1.52580623,81990.0,81989.0,0.00049141]
[1744269620357,1.31035241,81990.0,81989.0,0.00049141]
[1744269622185,1.23724241,81990.0,81989.0,0.00049141]
[1744269622391,0.82793298,81990.0,81989.0,0.00049141]
[1744269622731,0.805128,81990.0,81989.0,0.00049141]
[1744269622932,0.600128,81990.0,81989.0,0.00049141]
[1744269623188,0.597128,81990.0,81989.0,0.00049141]
[1744269625052,0.596128,81990.0,81989.0,0.00049141]
[1744269626343,0.996128,81990.0,81989.0,0.00049141]
[1744269626815,0.596128,81990.0,81989.0,0.00049141]
[1744269630775,1.069238,81990.0,81989.0,0.00049141]
[1744269631799,1.08098744,81990.0,81989.0,0.00049141]
[1744269631961,1.38098744,81990.0,81989.0,0.00049141]
[1744269636393,1.38198744,81990.0,81989.0,0.00049141]
[1744269639930,0.90887744,81990.0,81989.0,0.00049141]
[1744269640978,0.70887744,81990.0,81989.0,0.00049141]
[1744269641186,0.70787744,81990.0,81989.0,0.00049141]
[1744269641628,0.70787744,81990.0,81989.0,0.04729141]
[1744269644294,0.70787744,81990.0,81989.0,0.41178023]
[1744269644295,0.45174944,81990.0,81989.0,0.41178023]
[1744269644496,0.11174944,81990.0,81989.0,0.41178023]
[1744269644703,0.11174944,81990.0,81989.0,0.61449623]
[1744269645109,0.11174944,81990.0,81989.0,0.65253272]
[1744269645110,0.1,81990.0,81989.0,0.65253272]
[1744269645491,0.1,81990.0,81989.0,0.61449623]
[1744269645934,0.1,81990.0,81989.0,0.65251413]
[1744269646529,0.1,81990.0,81989.0,0.61449623]
[1744269651669,0.1,81990.0,81989.0,0.62903708]
[1744269655202,0.1,81990.0,81989.0,0.72903708]
[1744269655622,0.1,81990.0,81989.0,1.14233128]
[1744269655844,0.1,81990.0,81989.0,1.18025106]
[1744269659296,0.1,81990.0,81989.0,1.14233128]
[1744269660727,0.1,81990.0,81989.0,1.16505445]
[1744269661274,0.11218828,81990.0,81989.0,1.16505445]
[1744269661474,0.11218828,81990.0,81989.0,1.14233128]
[1744269661684,0.11218828,81990.0,81989.0,1.04149128]
[1744269662510,0.11218828,81990.0,81989.0,1.06421336]
[1744269665155,0.11218828,81990.0,81989.0,1.16421336]
[1744269665388,0.1,81990.0,81989.0,1.20207762]
[1744269665821,0.1,81990.0,81989.0,1.21343724]
[1744269668710,0.1,81990.0,81989.0,1.07235724]
[1744269668851,0.1,81990.0,81989.0,1.21343724]
[1744269669477,0.1,81990.0,81989.0,1.55843724]
[1744269669478,4e-07,81990.0,81989.0,1.55843724]
[1744269669744,1.0,82000.0,81999.0,0.46634085]
[1744269669947,1.0,82000.0,81999.0,0.94325429]
[1744269669948,9.6e-07,82000.0,81999.0,0.94325429]
[1744269670149,0.00941037,82000.0,81999.0,0.96597637]
[1744269670363,9.6e-07,82000.0,81999.0,0.96597637]
[1744269670680,9.6e-07,82000.0,81999.0,1.01597637]
[1744269671145,9.6e-07,82000.0,81999.0,1.02525627]
[1744269672154,9.6e-07,82000.0,81999.0,1.16633627]
[1744269672360,9.6e-07,82000.0,81999.0,1.11633627]
[1744269672936,9.6e-07,82000.0,81999.0,1.11133627]
[1744269673344,9.6e-07,82000.0,81999.0,1.52463047]
[1744269673887,4e-07,82023.0,82022.0,0.256028]
[1744269674104,4e-07,82023.0,82022.0,2.6346544]
[1744269674311,4e-07,82023.0,82022.0,2.63221687]
[1744269674656,4e-07,82023.0,82022.0,2.52521857]
[1744269674840,4e-07,82023.0,82022.0,2.66629857]
[1744269675042,4.29e-05,82023.0,82022.0,2.66629857]
[1744269677069,4.29e-05,82023.0,82022.0,2.32629857]
[1744269677470,4.29e-05,82023.0,82022.0,2.28109857]
[1744269678964,4.29e-05,82023.0,82022.0,2.23449857]
[1744269679368,4.29e-05,82023.0,82022.0,2.09341857]
[1744269679685,4.29e-05,82023.0,82022.0,2.23445857]
[1744269683088,4.29e-05,82023.0,82022.0,2.09341857]
[1744269683292,4.29e-05,82023.0,82022.0,2.23445857]
[1744269686383,4.29e-05,82023.0,82022.0,2.28415857]
[1744269686991,4.29e-05,82023.0,82022.0,2.23445857]
[1744269687401,4.29e-05,82023.0,82022.0,2.21991772]
[1744269689509,4.29e-05,82023.0,82022.0,2.07887772]
[1744269689679,4.29e-05,82023.0,82022.0,2.22139772]
[1744269691610,4.29e-05,82023.0,82022.0,2.20920672]
[1744269691819,4.29e-05,82023.0,82022.0,2.1978471]
[1744269691969,4.29e-05,82023.0,82022.0,1.9540101]
[1744269692149,4.29e-05,82023.0,82022.0,2.1978471]
[1744269692343,4.29e-05,82023.0,82022.0,2.2100381]
[1744269692549,4.29e-05,82023.0,82022.0,1.9540101]
[1744269692752,0.2560679,82023.0,82022.0,1.42016208]
[1744269693176,0.26412899,82023.0,82022.0,1.42016208]
[1744269694167,0.26412899,82023.0,82022.0,1.27764208]
[1744269696119,0.26412859,82023.0,82022.0,1.27764208]
[1744269696330,0.25825595,82023.0,82022.0,1.27764208]
[1744269696523,0.24606495,82023.0,82022.0,1.27764208]
[1744269696937,0.00806109,82023.0,82022.0,1.3981959]
[1744269697237,0.00806109,82023.0,82022.0,1.6542239]
[1744269697450,0.0454,82027.0,82023.0,0.243833]
[1744269697650,0.0454,82027.0,82024.0,0.243828]
[1744269697845,0.00807066,82026.0,82025.0,0.02272208]
[1744269698413,0.25189566,82026.0,82025.0,0.02272208]
[1744269699319,0.26408666,82026.0,82025.0,0.02272208]
[1744269702671,0.00807066,82026.0,82025.0,0.02272208]
[1744269702912,0.00807066,82026.0,82025.0,0.3992949]
[1744269703101,0.243814,82030.0,82025.0,0.3992949]
[1744269703367,0.25188871,82029.0,82026.0,0.12055382]
[1744269703542,0.00806671,82029.0,82027.0,0.243821]
[1744269703844,0.00806671,82029.0,82028.0,0.3870949]
[1744269704048,0.0003374,82031.0,82030.0,0.256003]
[1744269704197,0.0003374,82031.0,82030.0,0.37899468]
[1744269704398,0.0003374,82031.0,82030.0,0.3992789]
[1744269705121,0.0003374,82031.0,82030.0,0.41065555]
[1744269710724,0.0003374,82031.0,82030.0,0.55317555]
[1744269711136,0.0003374,82031.0,82030.0,0.54098555]
[1744269711292,0.2441474,82031.0,82030.0,0.15465255]
[1744269711495,0.26447129,82031.0,82030.0,0.29717255]
[1744269712035,0.26447129,82031.0,82030.0,0.03409873]
[1744269713518,0.26447129,82031.0,82030.0,0.02272208]
[1744269717620,0.31187129,82031.0,82030.0,0.02272208]
[1744269717973,0.51187129,82031.0,82030.0,0.02272208]
[1744269718763,0.256025,82023.0,82022.0,1.25492]
[1744269719323,0.26409574,82023.0,82022.0,1.27769341]
[1744269719778,0.31049574,82023.0,82022.0,0.02277341]
[1744269720128,0.65049574,82023.0,82022.0,0.02277341]
[1744269720406,0.69709574,82023.0,82022.0,0.02277341]
[1744269720777,0.596049,82015.0,82014.0,0.02277341]
[1744269720990,0.644949,82015.0,82014.0,0.02277341]
[1744269721172,0.644949,82015.0,82013.0,4.25e-05]
[1744269721173,0.596053,82014.0,82013.0,4.25e-05]
[1744269721658,0.6039493,82014.0,82013.0,4.25e-05]
[1744269723948,0.61584289,82014.0,82013.0,4.25e-05]
[1744269724360,1.01584289,82014.0,82013.0,4.25e-05]
[1744269725107,1.01584289,82014.0,82013.0,0.02281591]
[1744269725783,1.01584289,82014.0,82013.0,4.25e-05]
[1744269731328,1.08900289,82014.0,82013.0,4.25e-05]
[1744269731524,1.13670289,82014.0,82013.0,4.25e-05]
[1744269734926,0.68900289,82014.0,82013.0,4.25e-05]
[1744269735871,0.73780289,82014.0,82013.0,4.25e-05]
[1744269736861,0.378053,82001.0,82000.0,0.02277341]
[1744269737089,0.77119547,82001.0,82000.0,0.02277341]
[1744269737285,0.329282,81992.0,81991.0,0.01137362]
[1744269737499,0.33713706,81992.0,81991.0,0.01137362]
[1744269737873,0.33713706,81992.0,81989.0,6.534e-05]
[1744269737874,0.256125,81991.0,81989.0,6.534e-05]
[1744269738075,0.26397687,81991.0,81989.0,6.534e-05]
[1744269741640,0.33713687,81991.0,81989.0,6.534e-05]
[1744269741867,0.33713687,81991.0,81990.0,0.02294201]
[1744269743936,0.67713687,81991.0,81990.0,0.02294201]
[1744269744150,0.72333687,81991.0,81990.0,0.02294201]
[1744269744349,0.72333687,81991.0,81990.0,0.0001686]
[1744269744581,1.12333687,81991.0,81990.0,0.0001686]
[1744269745009,1.32333687,81991.0,81990.0,0.0001686]
[1744269746894,1.27713687,81991.0,81990.0,0.0001686]
[1744269747685,1.19178087,81991.0,81990.0,0.0001686]
[1744269747893,1.00397687,81991.0,81990.0,0.0001686]
[1744269748296,1.00397687,81991.0,81990.0,0.02291652]
[1744269749220,1.00397687,81991.0,81990.0,0.0001686]
[1744269749629,0.40785187,81991.0,81990.0,0.02291652]
[1744269749966,0.00785187,81991.0,81990.0,0.02291652]
[1744269750183,0.00785187,81991.0,81990.0,0.27822063]
[1744269750381,0.34,81993.0,81991.0,0.243926]
[1744269750512,0.012195,81997.0,81992.0,0.12055382]
[1744269750716,0.243923,81993.0,81992.0,0.14330174]
[1744269750922,0.243917,81995.0,81992.0,0.28542174]
[1744269751131,0.012195,81997.0,81993.0,0.02274792]
[1744269751358,0.243917,81995.0,81994.0,0.13192593]
[1744269751535,0.256112,81995.0,81994.0,0.15467385]
[1744269752585,0.26380987,81995.0,81994.0,0.15467385]
[1744269755043,0.26380987,81995.0,81994.0,0.29679385]
[1744269755830,0.26380987,81995.0,81994.0,0.17624003]
[1744269756255,0.26380987,81995.0,81994.0,0.03412003]
[1744269757753,0.67696987,81995.0,81994.0,0.03412003]
[1744269758434,1.07696987,81995.0,81994.0,0.01137211]
[1744269758622,1.07696987,81995.0,81990.0,0.0001686]
[1744269758623,0.256125,81991.0,81990.0,0.0001686]
[1744269758786,0.669285,81991.0,81990.0,0.0001686]
[1744269758986,0.67697647,81991.0,81990.0,0.0001686]
[1744269760395,0.60381647,81991.0,81990.0,0.0001686]
[1744269760541,0.60381647,81991.0,81990.0,0.0229389]
[1744269761128,0.60381647,81991.0,81990.0,0.03431101]
[1744269762808,0.26381647,81991.0,81990.0,0.03431101]
[1744269763041,0.00769147,81991.0,81990.0,0.45809283]
[1744269763518,0.243923,81993.0,81990.0,0.45809283]
[1744269763745,0.243926,81992.0,81991.0,0.14332412]
[1744269763972,0.25166471,81992.0,81991.0,0.14332412]
[1744269764178,0.26386071,81992.0,81991.0,0.28544412]
[1744269764416,0.25166471,81992.0,81991.0,0.28544412]
[1744269764529,0.25166471,81992.0,81991.0,0.29681623]
[1744269764755,0.00773871,81992.0,81991.0,0.29681623]
[1744269764986,0.25166471,81992.0,81991.0,0.29681623]
[1744269765305,0.26386071,81992.0,81991.0,0.29681623]
[1744269769761,0.26386071,81992.0,81991.0,0.03414241]
[1744269771649,0.26386071,81992.0,81991.0,0.0227703]
[1744269773938,0.26386071,81992.0,81991.0,0.0705703]
[1744269775689,0.26386071,81992.0,81991.0,0.1648903]
[1744269780052,0.26386071,81992.0,81991.0,0.0227703]
[1744269780822,0.26386071,81992.0,81991.0,0.14332412]
[1744269780823,0.00773871,81992.0,81991.0,0.14332412]
[1744269781042,0.25166471,81992.0,81991.0,0.14332412]
[1744269781257,0.256122,81992.0,81991.0,0.14332412]
[1744269781462,0.26384843,81992.0,81991.0,0.14332412]
[1744269785760,0.26384843,81992.0,81991.0,0.15471923]
[1744269787900,0.26384843,81992.0,81991.0,0.14332412]
[1744269790102,0.26384843,81992.0,81991.0,0.15472599]
[1744269791067,0.26384843,81992.0,81991.0,0.14332412]
[1744269791636,0.26384843,81992.0,81991.0,0.15188061]
[1744269792091,0.00772643,81992.0,81991.0,0.15188061]
[1744269792239,0.25165243,81992.0,81991.0,0.14332412]
[1744269792456,0.07316,82007.0,81991.0,0.14332412]
[1744269792457,0.012194,82002.0,81997.0,0.0478]
[1744269792662,0.256084,82005.0,82000.0,0.0484]
[1744269792858,0.243897,82002.0,82001.0,0.14332412]
[1744269793475,0.243897,82002.0,82001.0,0.16328461]
[1744269794205,0.256091,82002.0,82001.0,0.30448461]
[1744269794729,0.243897,82002.0,82001.0,0.30448461]
[1744269795016,0.256087,82003.0,82001.0,0.30448461]
[1744269795220,0.243896,82002.0,82001.0,0.30448461]
[1744269795381,0.25609,82002.0,82001.0,0.30448461]
[1744269795784,0.25609,82002.0,82001.0,0.18393079]
[1744269796949,0.25609,82002.0,82001.0,0.04273079]
[1744269797559,0.72638643,82002.0,82001.0,0.04273079]
[1744269797764,0.669276,81994.0,81993.0,0.00855381]
[1744269797986,1.07698051,81994.0,81993.0,0.00855381]
[1744269798183,1.12358051,81994.0,81993.0,9.4e-07]
[1744269798402,1.24413433,81994.0,81993.0,9.4e-07]
[1744269798603,0.669285,81991.0,81990.0,0.0001686]
[1744269798982,0.67693219,81991.0,81990.0,0.0001686]
[1744269799799,1.07693219,81991.0,81990.0,0.0001686]
[1744269799997,1.28588341,81991.0,81990.0,0.0001686]
[1744269800883,1.07693219,81991.0,81990.0,0.0001686]
[1744269801319,1.00377219,81991.0,81990.0,0.0001686]
[1744269806074,1.20377219,81991.0,81990.0,0.0001686]
[1744269806811,0.94764719,81991.0,81990.0,0.0001686]
[1744269807013,0.00764719,81991.0,81990.0,0.12072242]
[1744269807217,0.00764719,81991.0,81990.0,0.37685042]
[1744269807370,0.243921,81994.0,81990.0,0.37685042]
[1744269807574,0.25025707,81993.0,81991.0,0.12055382]
[1744269808010,0.00633407,81993.0,81992.0,0.243926]
[1744269808244,0.00633407,81993.0,81992.0,0.37667582]
[1744269808498,0.243914,81997.0,81993.0,0.256119]
[1744269808747,0.243914,81997.0,81994.0,0.12055382]
[1744269808946,0.00635642,81996.0,81994.0,0.12055382]
[1744269809387,0.25027142,81996.0,81994.0,0.12055382]
[1744269810730,0.25027142,81996.0,81995.0,0.02273446]
[1744269810933,0.25027142,81996.0,81995.0,0.14328828]
[1744269812489,0.00635642,81996.0,81995.0,0.14328828]
[1744269812833,0.25027042,81996.0,81995.0,0.14328828]
[1744269813032,0.243914,81996.0,81995.0,0.14328828]
[1744269813232,0.25027361,81996.0,81995.0,0.14328828]
[1744269815760,0.25027361,81996.0,81995.0,0.15465391]
[1744269815983,0.26246861,81996.0,81995.0,0.15465391]
[1744269818045,0.26246861,81996.0,81995.0,0.15765391]
[1744269818982,0.26246861,81996.0,81995.0,0.29885391]
[1744269821166,0.26246861,81996.0,81995.0,0.28748828]
[1744269822165,0.60246861,81996.0,81995.0,0.01579167]